bitfinex/quotes_ETHUSD_20251212
["timestamp","ask_amount","ask_price","bid_price","bid_amount"]
[1765514962778,0.002,3248.1,3248.0,0.486]
[1765514962980,0.002,3248.1,3248.0,0.9565]
[1765514965302,0.002,3248.1,3248.0,4.03531773]
[1765514965906,0.4931,3248.1,3248.0,3.07881773]
[1765514966199,0.4931,3248.1,3248.0,3.56481773]
[1765514966404,0.002,3248.1,3248.0,4.03531773]
[1765514968275,0.4931,3248.1,3247.8,3.0789332]
[1765514968606,0.3924,3247.9,3247.8,3.07900732]
[1765514968899,0.3924,3247.9,3247.8,3.56500732]
[1765514969198,0.4531,3248.1,3247.8,4.03550732]
[1765514969898,0.4911,3247.9,3247.8,3.56500732]
[1765514970600,0.4531,3248.1,3247.8,3.56500732]
[1765514972169,0.4911,3247.9,3247.8,3.56500732]
[1765514975087,1.1298,3247.9,3247.8,3.07900732]
[1765514975287,0.4911,3247.9,3247.8,3.07900732]
[1765514976177,0.002,3248.1,3247.8,6.62851464]
[1765514976876,0.4531,3248.1,3247.8,3.54950732]
[1765514978711,0.4911,3247.9,3247.8,3.07900732]
[1765514979210,0.9422,3247.9,3247.8,3.07900732]
[1765514981705,0.4911,3247.9,3247.8,3.07900732]
[1765514982603,0.9422,3247.9,3247.8,3.07900732]
[1765514985347,1.1348,3247.9,3247.6,3.07919694]
[1765514985643,0.1926,3247.9,3247.6,6.15839388]
[1765514985802,0.6549,3247.9,3247.6,6.15839388]
[1765514986640,0.4522,3247.7,3247.6,3.07919694]
[1765514986947,0.4623,3247.8,3247.6,3.07919694]
[1765514987268,0.1926,3247.9,3247.6,6.62889388]
[1765514987423,0.4623,3248.0,3247.6,6.62889388]
[1765514987743,0.4623,3248.0,3247.6,3.54969694]
[1765514988306,0.4522,3247.7,3247.6,3.07919694]
[1765514989439,0.9145,3247.7,3247.6,3.07919694]
[1765514989920,0.9145,3247.7,3247.5,3.56525503]
[1765514991743,0.4522,3247.7,3247.5,3.56525503]
[1765514991946,0.6549,3247.9,3247.5,6.64454679]
[1765514992245,0.4643,3248.1,3247.8,0.4705]
[1765514992836,0.002,3248.1,3247.8,0.4705]
[1765514993048,0.002,3248.1,3247.8,3.54948021]
[1765514993449,0.4643,3248.1,3247.8,0.4705]
[1765514993640,0.4643,3248.1,3247.7,3.07909765]
[1765514994040,0.4643,3248.1,3247.6,3.4499583]
[1765514994250,0.81858466,3248.1,3247.6,3.4499583]
[1765514994453,0.4623,3248.0,3247.6,3.4499583]
[1765514994752,0.35628466,3248.1,3247.6,3.4499583]
[1765514995048,0.4623,3248.0,3247.6,3.4499583]
[1765514998548,0.4623,3248.0,3247.6,3.9090583]
[1765514999460,0.4623,3248.0,3247.5,3.07926432]
[1765514999461,0.4522,3247.7,3247.5,3.07926432]
[1765514999696,0.413,3247.6,3247.5,3.56526432]
[1765515000496,0.4623,3247.8,3247.5,3.56526432]
[1765515001396,0.002,3248.1,3247.6,3.07919645]
[1765515001570,1.03330539,3248.1,3247.6,3.07919645]
[1765515002100,0.4623,3248.0,3247.6,3.07919645]
[1765515003195,0.002,3248.1,3247.5,3.93604959]
[1765515003497,0.4623,3247.9,3247.5,3.56526151]
[1765515004699,0.6549,3247.9,3247.5,3.56526151]
[1765515004998,0.4623,3247.8,3247.5,3.56526151]
[1765515005698,0.4522,3247.6,3247.1,3.07966553]
[1765515005997,0.4518,3247.2,3247.0,0.486]
[1765515006372,0.9141,3247.2,3247.0,0.486]
[1765515006573,0.4134,3247.1,3247.0,3.56576593]
[1765515007594,0.4623,3247.4,3247.0,3.07976593]
[1765515007782,0.4522,3247.1,3247.0,3.07976593]
[1765515008178,0.4522,3247.1,3246.9,3.5658397]
[1765515008378,0.4522,3247.0,3246.9,0.486]
[1765515008798,0.9145,3247.0,3246.9,0.486]
[1765515009002,0.9145,3247.0,3246.3,4.37576671]
[1765515009210,1.0679,3246.9,3246.5,3.08022668]
[1765515009405,0.1926,3247.2,3246.5,6.16046693]
[1765515009908,0.4623,3247.1,3246.5,3.08022668]
[1765515010473,0.4623,3247.1,3245.9,0.92476853]
[1765515010474,0.4522,3246.6,3245.9,0.92476853]
[1765515010783,1.52877529,3247.1,3246.4,3.08033514]
[1765515010987,1.52877529,3247.1,3246.5,0.4705]
[1765515010988,0.94239515,3247.0,3246.5,0.4705]
[1765515011185,0.94239515,3247.0,3246.4,3.08033514]
[1765515011414,0.4623,3246.9,3246.4,3.08033514]
[1765515011578,0.4623,3246.9,3246.3,6.16086004]
[1765515011779,0.4623,3246.9,3246.3,3.08043002]
[1765515012592,0.4623,3246.9,3246.3,6.16086004]
[1765515013983,0.6513,3247.2,3246.8,0.4705]
[1765515014410,0.486,3247.5,3246.8,0.4705]
[1765515014636,5.69570954,3248.1,3247.4,0.4705]
[1765515014637,0.4587,3248.0,3247.4,0.4705]
[1765515014847,0.6513,3247.9,3247.4,0.4705]
[1765515015031,0.6513,3247.9,3247.4,0.941]
[1765515015232,0.002,3248.1,3247.4,0.941]
[1765515015433,0.4607,3248.1,3247.4,0.4705]
[1765515015617,0.002,3248.1,3247.5,0.37078808]
[1765515015810,0.002,3248.1,3247.4,1.31178808]
[1765515016009,0.002,3248.1,3247.5,3.54979176]
[1765515016233,0.4591,3248.0,3247.5,3.07929176]
[1765515016637,0.1927,3247.9,3247.5,3.07929176]
[1765515016843,0.1927,3247.9,3247.6,0.486]
[1765515017142,0.4591,3247.8,3247.6,0.486]
[1765515019343,0.4591,3247.8,3247.6,3.56519321]
[1765515020142,0.4843,3247.7,3247.6,3.56519321]
[1765515020353,0.4591,3247.8,3247.6,3.56519321]
[1765515020552,0.1927,3247.9,3247.6,3.56519321]
[1765515020851,0.6518,3247.9,3247.6,3.56519321]
[1765515021353,0.4843,3247.7,3247.2,0.1568]
[1765515021542,0.4843,3247.7,3247.4,0.486]
[1765515021742,0.9434,3247.7,3247.4,3.56535723]
[1765515022153,0.3811,3247.5,3247.4,3.07935723]
[1765515022355,0.4591,3247.8,3247.4,3.54985723]
[1765515022866,0.4843,3247.5,3247.4,3.07935723]
[1765515023765,0.1927,3247.9,3247.4,6.62924381]
[1765515024069,0.6518,3247.9,3247.4,6.62924381]
[1765515024838,0.6518,3247.9,3247.4,3.54985723]
[1765515025367,0.002,3248.1,3247.4,6.62924381]
[1765515025665,0.4591,3248.0,3247.4,6.62924381]
[1765515025879,0.4591,3248.0,3247.4,3.54985723]
[1765515026070,0.4591,3248.0,3247.4,6.62924381]
[1765515026241,0.4591,3248.0,3247.4,7.09974381]
[1765515026868,0.002,3248.1,3247.6,3.07919694]
[1765515027242,0.002,3248.1,3247.6,3.54969694]
[1765515027442,0.002,3248.1,3247.6,3.56519694]
[1765515027647,0.002,3248.1,3248.0,0.4705]
[1765515029155,0.002,3248.1,3248.0,3.54931773]
[1765515029760,0.002,3248.1,3248.0,0.4705]
[1765515030186,0.002,3248.1,3248.0,3.54931773]
[1765515031904,0.002,3248.1,3248.0,0.4705]
[1765515032401,0.002,3248.1,3248.0,3.54931773]
[1765515035277,0.002,3248.1,3248.0,4.03531773]
[1765515035466,0.002,3248.1,3248.0,4.50581773]
[1765515035666,0.002,3248.1,3248.0,4.03531773]
[1765515037481,0.002,3248.1,3248.0,4.50581773]
[1765515037677,0.002,3248.1,3248.0,4.03531773]
[1765515037890,0.002,3248.1,3248.0,4.50581773]
[1765515038083,0.002,3248.1,3248.0,4.03531773]
[1765515039388,0.002,3248.1,3248.0,4.50581773]
[1765515039807,0.002,3248.1,3248.0,4.03531773]
[1765515040012,0.002,3248.1,3248.0,4.83395381]
[1765515040219,0.002,3248.1,3248.0,5.30445381]
[1765515042502,0.002,3248.1,3248.0,4.83395381]
[1765515042694,0.9454,3248.1,3248.0,0.486]
[1765515043440,0.002,3248.1,3248.0,3.56481773]
[1765515043601,0.002,3248.1,3248.0,4.50581773]
[1765515044028,0.002,3248.1,3248.0,4.03531773]
[1765515047726,0.002,3248.1,3248.0,4.50581773]
[1765515048026,0.002,3248.1,3248.0,5.30137819]
[1765515048760,0.002,3248.1,3248.0,4.83087819]
[1765515049068,0.002,3248.1,3248.0,5.30137819]
[1765515052133,0.002,3248.1,3248.0,4.34487819]
[1765515052341,0.465,3248.1,3248.0,4.36037819]
[1765515052676,0.465,3248.1,3248.0,3.56481773]
[1765515052972,0.9294,3248.1,3248.0,3.56481773]
[1765515054474,0.465,3248.1,3248.0,3.56481773]
[1765515054844,0.002,3248.1,3248.0,4.03531773]
[1765515055369,0.002,3248.1,3248.0,5.30137755]
[1765515057276,0.002,3248.1,3248.0,4.83087755]
[1765515057486,0.465,3248.1,3248.0,4.36037755]
[1765515057940,0.9294,3248.1,3248.0,4.36037755]
[1765515058273,0.9294,3248.1,3248.0,3.56481773]
[1765515059782,0.465,3248.1,3248.0,3.56481773]
[1765515063192,0.9294,3248.1,3248.0,3.56481773]
[1765515064291,0.465,3248.1,3248.0,3.56481773]
[1765515064788,0.002,3248.1,3248.0,4.03531773]
[1765515065186,0.002,3248.1,3248.0,3.56481773]
[1765515065389,0.9294,3248.1,3247.8,3.0789175]
[1765515065563,0.4664,3248.1,3247.9,3.56491252]
[1765515065766,0.4644,3248.0,3247.9,3.56491252]
[1765515066086,0.9274,3248.0,3247.9,0.486]
[1765515066893,0.9274,3248.0,3247.8,3.07897727]
[1765515067096,0.8595,3247.9,3247.8,3.56497727]
[1765515068891,0.3951,3247.9,3247.8,3.56497727]
[1765515070596,0.8595,3247.9,3247.8,3.56497727]
[1765515072795,1.0506,3247.9,3246.9,0.92436392]
[1765515073094,0.3852,3247.0,3246.8,0.486]
[1765515073282,6.16378598,3247.8,3246.8,0.486]
[1765515073465,0.475,3247.7,3246.8,0.486]
[1765515073878,0.475,3247.7,3246.9,0.37078808]
[1765515075281,3.55414057,3247.7,3247.0,3.07976593]
[1765515075495,0.35541406,3247.6,3247.0,3.07976593]
[1765515075807,0.80651406,3247.6,3247.0,3.07976593]
[1765515076168,0.4511,3247.5,3247.0,3.07976593]
[1765515078995,0.4518,3247.1,3246.9,3.45062286]
[1765515079901,0.4518,3247.1,3246.9,3.07985678]
[1765515081406,0.4511,3247.3,3246.9,3.07985678]
[1765515081574,0.4511,3247.6,3247.2,0.4631]
[1765515081969,0.80411146,3247.6,3247.2,0.4631]
[1765515082202,1.3512386,3247.9,3247.2,0.4631]
[1765515082203,0.4511,3247.8,3247.2,4.49914284]
[1765515082421,0.4511,3247.8,3247.2,7.57871909]
[1765515082914,0.002,3248.1,3247.7,0.4631]
[1765515083090,0.4531,3248.1,3247.6,0.486]
[1765515083412,0.8062805,3248.1,3247.6,0.486]
[1765515083790,0.4511,3248.0,3247.6,0.486]
[1765515084402,0.4518,3247.7,3247.6,0.486]
[1765515084805,0.1917,3247.9,3247.6,0.486]
[1765515084999,0.6428,3247.9,3247.6,0.486]
[1765515085615,0.1917,3247.9,3247.6,0.486]
[1765515086119,0.1917,3247.9,3247.6,3.56515401]
[1765515086414,0.4511,3248.0,3247.6,3.56515401]
[1765515087191,0.4511,3248.0,3247.6,0.486]
[1765515088221,0.1917,3247.9,3247.6,0.486]
[1765515088517,0.4518,3247.7,3247.6,0.486]
[1765515088713,0.4518,3247.7,3247.0,3.45055356]
[1765515088901,0.4187,3247.5,3247.2,3.07954412]
[1765515090033,0.4187,3247.5,3247.3,0.486]
[1765515090332,0.4187,3247.5,3247.3,3.56542423]
[1765515090541,0.002,3248.7,3248.0,0.4631]
[1765515090745,0.002,3248.7,3248.5,6.09497842]
[1765515090915,0.002,3248.7,3248.4,0.6159]
[1765515090916,0.002,3248.7,3248.6,16.16980592]
[1765515091107,0.002,3248.7,3248.6,1.93607929]
[1765515091303,0.002,3248.7,3248.6,8.21522045]
[1765515091806,0.002,3248.7,3248.6,9.0520225]
[1765515092010,0.002,3248.7,3248.6,8.5650225]
[1765515092346,0.002,3248.7,3248.6,12.13027159]
[1765515093941,0.002,3248.7,3248.6,5.08179317]
[1765515094231,0.002,3248.7,3248.6,5.44562643]
[1765515094425,0.002,3248.7,3248.6,4.95862643]
[1765515094626,0.002,3248.7,3248.6,5.42512643]
[1765515094835,0.002,3248.7,3248.6,5.91212643]
[1765515097041,0.002,3248.7,3248.6,4.37815114]
[1765515097217,0.002,3248.7,3248.6,0.487]
[1765515097218,0.4538,3248.7,3248.6,0.487]
[1765515097427,0.4538,3248.7,3248.6,3.56524909]
[1765515098224,0.4538,3248.7,3248.4,0.37078808]
[1765515098225,0.4538,3248.7,3248.5,3.07830769]
[1765515098537,0.4531,3248.7,3248.6,0.487]
[1765515099046,0.002,3248.7,3248.6,4.02834909]
[1765515099341,0.4538,3248.7,3248.6,3.56524909]
[1765515101643,0.002,3248.7,3248.6,4.02834909]
[1765515103150,0.002,3248.7,3248.6,5.85803085]
[1765515103452,0.002,3248.7,3248.6,12.64116085]
[1765515104219,0.002,3248.7,3248.6,13.79516085]
[1765515104755,0.002,3248.7,3248.6,14.20066485]
[1765515104957,0.002,3248.7,3248.6,13.25886485]
[1765515105157,0.002,3248.7,3248.6,20.01332402]
[1765515105332,0.002,3248.7,3248.6,28.22631402]
[1765515105943,0.002,3248.7,3248.6,21.00424102]
[1765515106459,0.002,3248.7,3248.6,20.97258002]
[1765515107462,0.002,3248.7,3248.6,17.70489002]
[1765515107858,0.002,3248.7,3248.6,12.0154156]
[1765515108049,0.002,3248.8,3248.7,0.58047529]
[1765515108248,0.002,3248.8,3248.7,29.17327225]
[1765515108563,0.002,3248.8,3248.7,23.39892725]
[1765515108942,0.002,3248.8,3248.7,20.18965125]
[1765515109568,0.002,3248.8,3248.7,25.46416733]
[1765515110253,0.002,3248.8,3248.7,28.54232166]
[1765515110453,0.002,3248.8,3248.7,30.39220666]
[1765515111352,0.002,3248.8,3248.7,23.00097466]
[1765515111662,0.002,3248.8,3248.7,22.99982166]
[1765515112576,0.002,3248.8,3248.7,37.44241666]
[1765515113570,1e-08,3249.0,3248.9,31.44717929]
[1765515113772,1e-08,3249.0,3248.9,34.50490923]
[1765515113972,1e-08,3249.0,3248.9,34.95970923]
[1765515114580,1e-08,3249.0,3248.9,38.03767407]
[1765515115295,1e-08,3249.0,3248.9,37.58287407]
[1765515115493,1e-08,3249.0,3248.9,23.71289107]
[1765515115789,1e-08,3249.0,3248.9,30.78581715]
[1765515116101,1e-08,3249.0,3248.9,17.11826415]
[1765515116492,1e-08,3249.0,3248.9,17.52376815]
[1765515116797,1e-08,3249.0,3248.9,26.99568015]
[1765515117579,0.002,3249.6,3249.2,0.405504]
[1765515117796,0.002,3249.6,3249.2,38.51443654]
[1765515118001,0.002,3249.6,3249.2,39.54971183]
[1765515118205,1e-08,3249.7,3249.6,0.866704]
[1765515118380,1e-08,3249.7,3249.6,16.12960301]
[1765515118700,1e-08,3249.7,3249.6,21.83474141]
[1765515119698,1e-08,3249.7,3249.6,28.71381341]
[1765515119899,1e-08,3249.7,3249.6,29.20081341]
[1765515120402,1e-08,3249.7,3249.6,8.86601941]
[1765515120603,1e-08,3249.7,3249.6,6.62444141]
[1765515120794,1e-08,3249.7,3249.6,8.91344841]
[1765515120996,1e-08,3249.7,3249.6,6.62444141]
[1765515121203,0.94510001,3249.7,3249.6,3.07730182]
[1765515121505,0.94510001,3249.7,3249.6,4.14477711]
[1765515123507,0.94510001,3249.7,3249.6,0.58047529]
[1765515123710,0.94510001,3249.7,3249.0,3.07784606]
[1765515123880,0.4773,3249.6,3249.1,0.487]
[1765515124079,0.4773,3249.6,3249.1,3.56473132]
[1765515124303,0.4678,3249.2,3249.1,3.56473132]
[1765515124715,0.9451,3249.2,3249.1,3.56473132]
[1765515125393,0.9451,3249.2,3249.1,0.487]
[1765515126281,0.9451,3249.2,3248.6,0.58047529]
[1765515126479,0.4773,3249.1,3248.8,3.07803064]
[1765515126704,0.4773,3249.1,3248.8,3.65849315]
[1765515126892,0.6595,3248.9,3248.8,3.65849315]
[1765515127091,1.1368,3248.9,3248.8,3.65849315]
[1765515128623,1.1368,3248.9,3248.8,4.14549315]
[1765515129691,1.1368,3248.9,3248.8,3.65849315]
[1765515130017,1.1368,3248.9,3248.8,4.14549315]
[1765515130395,1.1368,3248.9,3248.8,3.65849315]
[1765515130699,1.1368,3248.9,3248.8,4.14549315]
[1765515133222,0.4706,3249.4,3248.8,7.67775274]
[1765515133393,0.4706,3249.4,3248.9,0.95126337]
[1765515134219,0.474,3249.0,3248.9,0.58047529]
[1765515134519,0.474,3249.0,3248.9,1.06747529]
[1765515134717,0.4706,3249.4,3248.9,1.52167529]
[1765515135308,0.4706,3249.4,3249.0,6.15574022]
[1765515136530,1e-08,3249.7,3249.1,0.95126337]
[1765515136706,0.4804,3249.6,3249.1,0.95126337]
[1765515137113,0.4804,3249.6,3249.3,0.37078808]
[1765515137422,1e-08,3249.7,3249.6,3.07730182]
[1765515137590,0.97340001,3249.7,3249.6,3.07730182]
[1765515139924,0.97340001,3249.7,3249.5,3.07739652]
[1765515140104,0.4804,3249.6,3249.5,3.07739652]
[1765515140310,0.9734,3249.6,3249.5,3.56439652]
[1765515141741,1e-08,3249.7,3249.5,3.56439652]
[1765515141742,1e-08,3249.7,3249.6,0.58047529]
[1765515142035,1e-08,3249.7,3249.6,4.12427711]
[1765515142394,1e-08,3249.7,3249.6,3.65777711]
[1765515143729,0.49300001,3249.7,3249.6,3.65777711]
[1765515143922,0.97340001,3249.7,3249.6,4.14477711]
[1765515144842,1e-08,3249.7,3249.6,4.14477711]
[1765515145205,0.49300001,3249.7,3249.6,4.14477711]
[1765515147243,0.97340001,3249.7,3249.6,4.14477711]
[1765515149149,0.49300001,3249.7,3249.6,4.14477711]
[1765515152950,1e-08,3249.7,3249.6,4.61127711]
[1765515153113,1e-08,3249.7,3249.6,5.41722476]
[1765515153750,1e-08,3249.7,3249.6,5.88372476]
[1765515154413,1e-08,3249.7,3249.6,5.41722476]
[1765515154751,1e-08,3249.7,3249.6,20.60053176]
[1765515154953,1e-08,3249.7,3249.6,12.23273876]
[1765515155133,1e-08,3249.7,3249.6,11.84243876]
[1765515155446,1e-08,3249.7,3249.6,5.82272876]
[1765515156353,1e-08,3249.7,3249.6,6.28922876]
[1765515157380,1e-08,3249.7,3249.6,20.24816376]
[1765515159660,1e-08,3249.7,3249.6,19.29260476]
[1765515160258,1e-08,3249.7,3249.6,18.13823876]
[1765515163855,1e-08,3249.7,3249.6,6.28922876]
[1765515164023,1e-08,3249.7,3249.6,26.08177976]
[1765515164224,1e-08,3249.7,3249.6,25.61527976]
[1765515164456,1e-08,3249.7,3249.6,26.08177976]
[1765515164880,1e-08,3249.7,3249.6,26.20512176]
[1765515165233,1e-08,3249.7,3249.6,24.98628976]
[1765515165654,1e-08,3249.7,3249.6,14.69849676]
[1765515165832,1e-08,3249.7,3249.6,14.95046076]
[1765515166354,1e-08,3249.7,3249.6,5.33572876]
[1765515166546,1e-08,3249.7,3249.6,7.93002876]
[1765515166860,0.47460001,3249.7,3249.6,4.86922876]
[1765515167046,0.94740001,3249.7,3249.6,3.07730182]
[1765515167227,0.94740001,3249.7,3249.6,4.14477711]
[1765515170558,0.94740001,3249.7,3249.6,3.65777711]
[1765515170745,0.94740001,3249.7,3249.6,4.14477711]
[1765515178390,0.94740001,3249.7,3249.6,4.61127711]
[1765515178391,1e-08,3249.7,3249.6,4.61127711]
[1765515178887,0.94740001,3249.7,3249.6,4.14477711]
[1765515182090,0.94740001,3249.7,3249.6,4.61127711]
[1765515182091,1e-08,3249.7,3249.6,4.61127711]
[1765515182389,1e-08,3249.7,3249.6,5.41722476]
[1765515182772,1e-08,3249.7,3249.6,5.88372476]
[1765515183895,1e-08,3249.7,3249.6,6.28922876]
[1765515186362,0.47460001,3249.7,3249.6,4.86922876]
[1765515186566,0.94740001,3249.7,3249.6,3.07730182]
[1765515186890,0.94740001,3249.7,3249.6,4.14477711]
[1765515187098,0.94740001,3249.7,3249.6,3.56430182]
[1765515188693,0.94740001,3249.7,3249.6,3.65777711]
[1765515188996,0.94740001,3249.7,3249.6,4.14477711]
[1765515190200,0.94740001,3249.7,3249.6,3.07730182]
[1765515195089,0.93030001,3249.7,3249.6,3.07730182]
[1765515198804,1e-08,3249.7,3249.6,3.54380182]
[1765515199012,1e-08,3249.7,3249.6,3.88324925]
[1765515199304,0.46750001,3249.7,3249.6,3.88324925]
[1765515199880,0.46750001,3249.7,3249.6,3.07730182]
[1765515203618,1e-08,3249.7,3249.6,3.54380182]
[1765515203920,0.46750001,3249.7,3249.6,3.07730182]
[1765515205417,0.95710001,3249.7,3249.6,3.07730182]
[1765515206507,0.95710001,3249.7,3249.2,3.07761921]
[1765515206700,0.4884,3249.6,3249.3,3.56357519]
[1765515207199,0.4675,3249.4,3249.3,3.56357519]
[1765515207823,0.9571,3249.4,3249.3,3.56357519]
[1765515211230,0.4675,3249.4,3249.3,0.486]
[1765515211435,0.9571,3249.4,3249.3,0.486]
[1765515212403,0.9571,3249.4,3248.1,0.52358808]
[1765515212604,0.3664,3249.2,3248.5,0.58047529]
[1765515212853,0.4896,3249.5,3248.6,0.486]
[1765515213140,1e-08,3249.7,3248.6,0.9518]
[1765515213323,0.4896,3249.4,3248.6,0.9518]
[1765515214000,1e-08,3249.7,3248.8,0.95126337]
[1765515214206,0.86444471,3249.7,3249.0,0.37078808]
[1765515214439,0.48960001,3249.7,3249.1,0.486]
[1765515214646,0.4896,3249.6,3249.1,0.486]
[1765515216224,0.4896,3249.6,3249.2,3.07768065]
[1765515217740,0.4896,3249.6,3249.2,6.1553613]
[1765515219247,1e-08,3249.7,3249.2,6.1553613]
[1765515219417,1e-08,3249.7,3249.5,0.4665]
[1765515219743,1e-08,3249.7,3249.5,0.9525]
[1765515220346,0.4675,3249.6,3249.5,0.486]
[1765515220521,0.4675,3249.6,3248.9,3.07796484]
[1765515220849,0.3664,3249.3,3249.0,0.486]
[1765515221013,0.4896,3249.5,3249.0,0.486]
[1765515221211,0.4675,3249.1,3249.0,0.486]
[1765515221652,0.9571,3249.1,3249.0,0.486]
[1765515223516,0.9571,3249.1,3249.0,3.56387011]
[1765515224042,0.4675,3249.1,3249.0,3.07787011]
[1765515224344,0.937,3249.1,3249.0,3.56387011]
[1765515226164,1e-08,3249.7,3249.1,0.58047529]
[1765515226317,1e-08,3249.7,3249.6,1.03417529]
[1765515226665,1e-08,3249.7,3249.6,21.79644511]
[1765515226821,1e-08,3249.7,3249.6,17.58670333]
[1765515227017,1e-08,3249.7,3249.6,5.10662225]
[1765515227222,1e-08,3249.7,3249.6,6.41202653]
[1765515227449,1e-08,3249.7,3249.6,6.28888539]
[1765515227656,1e-08,3249.7,3249.6,11.97252361]
[1765515228766,1e-08,3249.7,3249.6,11.01902361]
[1765515228965,1e-08,3249.7,3249.6,5.82238539]
[1765515230279,1e-08,3249.7,3249.6,4.92988139]
[1765515230568,0.46060001,3249.7,3249.6,4.14477711]
[1765515234645,0.93010001,3249.7,3249.6,4.14477711]
[1765515235241,0.46060001,3249.7,3249.6,4.14477711]
[1765515235654,1e-08,3249.7,3249.6,4.14477711]
[1765515237038,0.46060001,3249.7,3249.6,4.14477711]
[1765515237238,0.46060001,3249.7,3249.6,3.56430182]
[1765515237479,0.93010001,3249.7,3249.6,3.56430182]
[1765515237673,0.46060001,3249.7,3249.6,3.56430182]
[1765515237976,0.93010001,3249.7,3249.6,3.56430182]
[1765515239340,0.46060001,3249.7,3249.6,3.56430182]
[1765515239955,0.93010001,3249.7,3249.6,3.56430182]
[1765515240253,0.46060001,3249.7,3249.6,0.487]
[1765515240481,0.93010001,3249.7,3249.2,3.07760971]
[1765515240778,0.46950001,3249.7,3249.3,3.07753922]
[1765515241076,0.4695,3249.6,3249.4,3.0774902]
[1765515241371,0.4695,3249.6,3249.3,6.15517188]
[1765515241740,0.4606,3249.4,3249.3,3.07758594]
[1765515242137,0.9301,3249.4,3249.3,3.07758594]
[1765515248482,0.4606,3249.4,3249.3,3.07758594]
[1765515248978,0.9301,3249.4,3249.3,3.07758594]
[1765515252578,0.4606,3249.4,3249.3,3.07758594]
[1765515254806,0.9128,3249.4,3249.3,3.07758594]
[1765515256703,1e-08,3249.7,3249.3,3.52858594]
[1765515256912,1e-08,3249.7,3249.3,6.60617188]
[1765515257112,0.47580001,3249.7,3249.3,6.60617188]
[1765515259518,1e-08,3249.7,3249.3,6.60617188]
[1765515259679,1e-08,3249.7,3249.3,6.86448907]
[1765515259884,0.47580001,3249.7,3249.3,6.15517188]
[1765515260596,0.47580001,3249.7,3249.3,3.07758594]
[1765515262734,1e-08,3249.7,3249.6,0.872004]
[1765515262883,1e-08,3249.7,3249.6,29.86390629]
[1765515263090,1e-08,3249.7,3249.6,29.49727123]
[1765515263320,1e-08,3249.7,3249.6,26.00926923]
[1765515263812,1e-08,3249.7,3249.6,5.45690923]
[1765515264017,1e-08,3249.7,3249.6,24.20995837]
[1765515264222,1e-08,3249.7,3249.6,23.99211537]
[1765515264419,1e-08,3249.7,3249.6,23.60962137]
[1765515265021,1e-08,3249.7,3249.6,26.64167119]
[1765515265512,1e-08,3249.7,3249.6,23.00977219]
[1765515266026,1e-08,3249.7,3249.6,24.99178819]
[1765515266427,1e-08,3249.7,3249.6,28.04951813]
[1765515266598,1e-08,3249.7,3249.6,28.17264979]
[1765515267013,1e-08,3249.7,3249.6,32.61468679]
[1765515269098,1e-08,3249.7,3249.6,15.60567479]
[1765515270052,1e-08,3249.7,3249.6,19.61076879]
[1765515270522,1e-08,3249.7,3249.6,16.85188113]
[1765515271096,1e-08,3249.7,3249.6,17.91327313]
[1765515271344,1e-08,3249.7,3249.6,13.49293513]
[1765515271841,1e-08,3249.7,3249.6,7.45931984]
[1765515272136,1e-08,3249.7,3249.6,3.54380182]
[1765515272535,1e-08,3249.7,3249.6,4.12427711]
[1765515275304,1e-08,3249.7,3249.6,10.26715327]
[1765515275734,1e-08,3249.7,3249.6,10.67265727]
[1765515277739,1e-08,3249.7,3249.6,10.21295727]
[1765515277931,1e-08,3249.7,3249.6,4.96618138]
[1765515281465,1e-08,3249.7,3249.6,4.49968138]
[1765515281933,1e-08,3249.7,3249.6,4.96618138]
[1765515292240,0.45660001,3249.7,3249.6,4.49968138]
[1765515292775,1e-08,3249.7,3249.6,4.49968138]
[1765515294379,0.93090001,3249.7,3249.6,4.09417738]
[1765515294673,0.93090001,3249.7,3249.6,3.65777711]
[1765515295159,0.45660001,3249.7,3249.6,3.65777711]
[1765515295362,1e-08,3249.7,3249.6,3.65777711]
[1765515298051,1e-08,3249.7,3249.6,3.6500315]
[1765515298870,0.45660001,3249.7,3249.6,3.6500315]
[1765515299680,1e-08,3249.7,3249.6,3.6500315]
[1765515300870,1e-08,3249.7,3249.6,4.1165315]
[1765515301379,1e-08,3249.7,3249.6,19.18354905]
[1765515301553,1e-08,3249.7,3249.6,36.2320088]
[1765515302172,1e-08,3249.7,3249.6,36.35514046]
[1765515303469,1e-08,3249.7,3249.6,6.35514046]
[1765515303649,1e-08,3249.7,3249.6,36.35514046]
[1765515306082,1e-08,3250.0,3249.9,27.43709429]
[1765515306387,1e-08,3250.0,3249.9,37.37446293]
[1765515306690,1e-08,3250.0,3249.9,37.59953011]
[1765515307548,1e-08,3250.0,3249.9,10.67654786]
[1765515307871,1e-08,3250.0,3249.9,40.67654786]
[1765515308054,1e-08,3250.0,3249.9,43.5251728]
[1765515308596,0.002,3250.7,3249.9,49.20572362]
[1765515308763,0.002,3250.7,3250.2,37.66061819]
[1765515309462,0.002,3250.7,3250.2,38.12711819]
[1765515309662,0.002,3250.7,3250.2,41.20385192]
[1765515309882,0.002,3250.7,3250.2,44.26158186]
[1765515310181,0.002,3250.7,3250.2,43.79508186]
[1765515310384,0.002,3250.7,3250.2,44.26158186]
[1765515312082,0.002,3250.7,3250.2,44.45738186]
[1765515313149,0.002,3250.7,3250.2,39.58646286]
[1765515313382,0.4548,3250.7,3250.2,28.57517886]
[1765515313583,0.002,3250.7,3250.2,29.02627886]
[1765515313968,0.002,3250.7,3250.2,31.82721104]
[1765515314173,0.002,3250.7,3250.2,21.14207886]
[1765515314903,0.002,3250.7,3250.2,42.00631586]
[1765515315490,0.002,3250.7,3250.2,41.33682586]
[1765515315977,0.002,3250.7,3250.2,44.43704182]
[1765515316657,0.002,3250.7,3250.4,0.405504]
[1765515316854,0.002,3250.7,3250.6,37.48327815]
[1765515317080,0.002,3250.7,3250.6,41.00250809]
[1765515317281,0.002,3250.7,3250.6,19.59583617]
[1765515317600,0.002,3250.7,3250.6,19.63093617]
[1765515317601,0.4814,3250.7,3250.6,19.63093617]